fUST/lending_fUST_20251231
["ID","MTS","AMOUNT","RATE_DAILY","PERIOD"]
[400132730,1767143432583,-872.77266367,0.00012758,2]
[400132731,1767143432591,-872.77266367,0.00012758,2]
[400132733,1767143432601,-1000.0,0.00012759,2]
[400132735,1767143432610,-1000.0,0.00012759,2]
[400132737,1767143432619,-1000.0,0.00012759,2]
[400132739,1767143432629,-1003.36208938,0.00012759,2]
[400132741,1767143432638,-151.0,0.00012759,2]
[400132742,1767143432647,-151.0,0.00012759,2]
[400132744,1767143432656,-151.0,0.00012759,2]
[400132746,1767143432665,-151.0,0.00012759,2]
[400132748,1767143432674,-151.0,0.00012759,2]
[400132750,1767143432683,-151.0,0.00012759,2]
[400132752,1767143432692,-151.0,0.00012759,2]
[400132754,1767143432701,-151.0,0.00012759,2]
[400132756,1767143432710,-151.0,0.00012759,2]
[400132757,1767143432719,-151.0,0.00012759,2]
[400132759,1767143432728,-151.0,0.00012759,2]
[400132761,1767143432737,-151.0,0.00012759,2]
[400132763,1767143432751,-151.0,0.00012759,2]
[400132765,1767143432760,-151.0,0.00012759,2]
[400132767,1767143432769,-202.88839681,0.00012759,2]
[400132769,1767143432778,-33971.19065237,0.00012759,2]
[400132771,1767143432789,-509.82950955,0.00012759,2]
[400132777,1767143432841,329.78,0.00012329,2]
[400132826,1767143438609,-500.0,0.00012758,2]
[400132827,1767143438618,-818.22437219,0.00012758,2]
[400132828,1767143438628,-163.3440736,0.00012758,2]
[400132829,1767143438637,-500.0,0.00012758,2]
[400132830,1767143438647,-500.0,0.00012758,2]
[400132831,1767143438656,-500.0,0.00012758,2]
[400132832,1767143438665,-547.28313562,0.00012758,2]
[400132833,1767143438675,-818.22437219,0.00012758,2]
[400132834,1767143438684,-267.8631127,0.00012758,2]
[400132835,1767143438699,-232.1368873,0.00012758,2]
[400132836,1767143438709,-369.14963675,0.00012758,2]
[400132837,1767143438718,-637.6625427,0.00012758,2]
[400132838,1767143438727,-818.22437219,0.00012758,2]
[400132839,1767143438737,-818.22437219,0.00012758,2]
[400132840,1767143438749,-818.22437219,0.00012758,2]
[400132841,1767143438759,-818.22437219,0.00012758,2]
[400132842,1767143438768,-818.22437219,0.00012758,2]
[400132843,1767143438778,-818.22437219,0.00012758,2]
[400132844,1767143438787,-818.22437219,0.00012758,2]
[400132845,1767143438796,-818.22437219,0.00012758,2]
[400132846,1767143438806,-671950.74647135,0.00012759,2]
[400132847,1767143438815,-1200.0,0.00012856,2]
[400132848,1767143438824,-50000.0,0.00012857,2]
[400132849,1767143438833,-196.28826695,0.00012857,2]
[400132850,1767143438843,-9531.03116731,0.000129,2]
[400132851,1767143438852,-300.0,0.00013116,2]
[400132852,1767143438861,-300.0,0.00013116,2]
[400132853,1767143438870,-300.0,0.00013116,2]
[400132854,1767143438880,-300.0,0.00013116,2]
[400132855,1767143438889,-300.0,0.00013116,2]
[400132856,1767143438898,-300.0,0.00013116,2]
[400132857,1767143438907,-300.0,0.00013116,2]
[400132858,1767143438917,-300.0,0.00013116,2]
[400132859,1767143438926,-300.0,0.00013116,2]
[400132860,1767143438935,-300.0,0.00013116,2]
[400132861,1767143438944,-300.0,0.00013116,2]
[400132862,1767143438953,-300.0,0.00013116,2]
[400132863,1767143438963,-300.0,0.00013116,2]
[400132864,1767143438972,-300.0,0.00013116,2]
[400132865,1767143438982,-300.0,0.00013116,2]
[400132866,1767143438991,-600.0,0.00013116,2]
[400132867,1767143439000,-500.0,0.00013273,2]
[400132868,1767143439009,-501.17509357,0.00013273,2]
[400132869,1767143439018,-500.0,0.00013273,2]
[400132870,1767143439028,-500.0,0.00013273,2]
[400132871,1767143439037,-500.0,0.00013273,2]
[400132872,1767143439047,-500.0,0.00013273,2]
[400132873,1767143439056,-608.22992308,0.00013273,2]
[400132874,1767143439066,-491.44055315,0.00013273,2]
[400132875,1767143439075,-500.0,0.00013273,2]
[400132876,1767143439085,-488.21037431,0.00013273,2]
[400132877,1767143439095,-185.30799155,0.00013273,2]
[400132878,1767143439104,-10046.3898032,0.0001354,2]
[400132879,1767143439114,-15488.4466087,0.00013699,2]
[400132880,1767143439124,-693.367322,0.00013699,2]
[400132881,1767143439133,-3235.199993,0.00013699,2]
[400132882,1767143439143,-500.0,0.00013699,2]
[400132883,1767143439153,-500.0,0.00013699,2]
[400132884,1767143439163,-523.24563088,0.00013699,2]
[400132885,1767143439173,-963.64176807,0.00013821,2]
[400132886,1767143439182,-555.66200372,0.00013821,2]
[400132887,1767143439193,-1000.0,0.00013821,2]
[400132888,1767143439202,-1000.0,0.00013821,2]
[400132889,1767143439211,-1000.0,0.00013821,2]
[400132890,1767143439221,-1000.0,0.00013821,2]
[400132891,1767143439230,-410.26,0.00013857,2]
[400132892,1767143439240,-420.0,0.00013994,2]
[400132893,1767143439249,-275.148652,0.00014028,2]
[400132894,1767143439259,-930.0,0.00014101,2]
[400132895,1767143439268,-304.76708556,0.00014247,2]
[400132896,1767143439277,-1000.0,0.00014247,2]
[400132897,1767143439286,-1500.0,0.00014368,2]
[400132898,1767143439296,-720.0,0.00014428,2]
[400132899,1767143439306,-204.02937388,0.00014786,2]
[400132900,1767143439315,-204.35497958,0.00014786,2]
[400132901,1767143439324,-728.8899962,0.00014788,2]
[400132902,1767143439333,-204.84491665,0.00014788,2]
[400132903,1767143439342,-1162.12803708,0.00014795,2]
[400132904,1767143439351,-231.620155,0.00014857,2]
[400132905,1767143439360,-177.70685836,0.00014916,2]
[400132906,1767143439370,-615.39,0.00015012,2]
[400132907,1767143439379,-100000.0,0.00015028,2]
[400132908,1767143439388,-275.148652,0.00015336,2]
[400132909,1767143439397,-587.0,0.0001535,2]
[400132910,1767143439406,-920.7367381,0.00015754,2]
[400132911,1767143439415,-864.0,0.0001587,2]
[400132912,1767143439425,-820.52,0.00016167,2]
[400132913,1767143439435,-9531.03116729,0.00016211,2]
[400132914,1767143439444,-154.62763964,0.00016472,2]
[400132915,1767143439454,-275.148652,0.00016643,2]
[400132916,1767143439463,-823.0,0.00016838,2]
[400132917,1767143439473,-250.0,0.00016856,2]
[400132918,1767143439483,-266.95204306,0.00016857,2]
[400132919,1767143439493,-1025.65,0.00017322,2]
[400132920,1767143439502,-1000.0,0.00017457,2]
[400132921,1767143439512,-77083.6198138,0.00017622,2]
[400132922,1767143439521,-728.8899962,0.00017893,2]
[400132923,1767143439530,-1152.0,0.00018471,2]
[400132924,1767143439539,-1230.78,0.00018477,2]
[400132925,1767143439549,-302.28393111,0.00018857,2]
[400132926,1767143439558,-500.0,0.00019178,2]
[400132927,1767143439567,-500.0,0.00019178,2]
[400132928,1767143439577,-500.0,0.00019178,2]
[400132929,1767143439586,-500.0,0.00019178,2]
[400132930,1767143439596,-500.0,0.00019178,2]
[400132931,1767143439605,-500.0,0.00019178,2]
[400132932,1767143439615,-500.0,0.00019178,2]
[400132933,1767143439624,-500.0,0.00019178,2]
[400132934,1767143439633,-500.0,0.00019178,2]
[400132935,1767143439643,-500.0,0.00019178,2]
[400132936,1767143439652,-500.0,0.00019178,2]
[400132937,1767143439661,-500.0,0.00019178,2]
[400132938,1767143439670,-500.0,0.00019178,2]
[400132939,1767143439680,-500.0,0.00019178,2]
[400132940,1767143439689,-500.0,0.00019178,2]
[400132941,1767143439699,-500.0,0.00019178,2]
[400132942,1767143439708,-500.0,0.00019178,2]
[400132943,1767143439717,-500.0,0.00019178,2]
[400132944,1767143439727,-500.0,0.00019178,2]
[400132945,1767143439736,-500.0,0.00019178,2]
[400132946,1767143439747,-500.0,0.00019178,2]
[400132947,1767143439757,-500.0,0.00019178,2]
[400132948,1767143439766,-500.0,0.00019178,2]
[400132949,1767143439776,-500.0,0.00019178,2]
[400132950,1767143439785,-500.0,0.00019178,2]
[400132951,1767143439795,-500.0,0.00019178,2]
[400132952,1767143439804,-500.0,0.00019178,2]
[400132953,1767143439813,-500.0,0.00019178,2]
[400132954,1767143439822,-500.0,0.00019178,2]
[400132955,1767143439831,-500.0,0.00019178,2]
[400132956,1767143439840,-518.022375,0.00019178,2]
[400132957,1767143439850,-500.0,0.00019178,2]
[400132958,1767143439859,-166.35,0.000192,2]
[400132959,1767143439868,-1065.02,0.000192,2]
[400132960,1767143439877,-164.88,0.000192,2]
[400132961,1767143439887,-10447.6,0.000192,2]
[400132962,1767143439896,-160.47,0.000192,2]
[400132963,1767143439905,-1000.0,0.00019203,2]
[400132964,1767143439914,-244.0,0.00019203,2]
[400132965,1767143439925,-204.02937388,0.00019444,2]
[400132966,1767143439934,-204.35497958,0.00019444,2]
[400132967,1767143439943,-204.84491665,0.00019446,2]
[400132968,1767143439952,-1435.91,0.00019631,2]
[400132969,1767143439961,-9531.03116729,0.00019743,2]
[400132970,1767143439972,-17199.6804338,0.00019934,2]
[400132971,1767143439982,-307.34263977,0.00020047,2]
[400132972,1767143439991,-693.367322,0.00020187,2]
[400132973,1767143440000,-154.62763964,0.00020188,2]
[400132974,1767143440010,-1613.0,0.00020261,2]
[400132975,1767143440019,-3837.7674497,0.0002045,2]
[400132976,1767143440028,-3235.199993,0.00020548,2]
[400132977,1767143440037,-1641.04,0.00020786,2]
[400132978,1767143440047,-553.21675159,0.00020804,2]
[400132979,1767143440057,-337.61581916,0.00020857,2]
[400132980,1767143440066,-728.8899962,0.00020999,2]
[400132981,1767143440075,-1000.0,0.00021123,10]
[400132982,1767143440084,-492.0,0.00021123,10]
[400132983,1767143440094,-1065.02,0.000212,2]
[400132984,1767143440104,-10447.6,0.000212,2]
[400132985,1767143440114,-983.49644727,0.0002156,2]
[400132986,1767143440123,-189.97563108,0.00021717,5]
[400132987,1767143440133,-299.0,0.000219,2]
[400132988,1767143440143,-502.71464501,0.00021917,2]
[400132989,1767143440152,-596.15628626,0.00021917,2]
[400132990,1767143440162,-500.0,0.00021917,2]
[400132991,1767143440171,-273.05832441,0.00021917,2]
[400132992,1767143440180,-500.93906544,0.00021917,2]
[400132993,1767143440189,-3493.97,0.00021917,2]
[400132994,1767143440198,-1846.17,0.00021941,2]
[400132995,1767143440208,-174.39,0.00022,2]
[400132996,1767143440218,-166.09,0.00022,7]
[400132997,1767143440227,-500.0,0.00022191,2]
[400132998,1767143440236,-3493.97,0.00022191,2]
[400132999,1767143440245,-2258.0,0.00022225,2]
[400133000,1767143440254,-1536.71319886,0.00022317,2]
[400133001,1767143440264,-500.0,0.00022465,2]
[400133002,1767143440273,-3493.97,0.00022465,2]
[400133003,1767143440283,-486.23,0.00022739,2]
[400133004,1767143440292,-3493.97,0.00022739,2]
[400133005,1767143440302,-151.0,0.00022749,2]
[400133006,1767143440312,-372.94770721,0.00022857,2]
[400133007,1767143440321,-3493.97,0.00023013,2]
[400133008,1767143440330,-2212.86700636,0.00023074,2]
[400133009,1767143440340,-2051.29,0.00023096,2]
[400133010,1767143440349,-1000.0,0.00023236,10]
[400133011,1767143440358,-791.0,0.00023236,10]
[400133012,1767143440367,-9531.03116729,0.00023274,2]
[400133013,1767143440376,-3493.97,0.00023287,2]
[400133014,1767143440385,-332.71390172,0.00023499,2]
[400133015,1767143440394,-3493.97,0.00023561,2]
[400133016,1767143440404,-1065.02,0.000236,14]
[400133017,1767143440413,-164.88,0.000236,7]
[400133018,1767143440423,-10447.6,0.000236,2]
[400133019,1767143440432,-2896.16862385,0.00023766,6]
[400133020,1767143440441,-3011.95786976,0.00023831,2]
[400133021,1767143440450,-3493.97,0.00023835,2]
[400133022,1767143440459,-154.62763964,0.00023904,2]
[400133023,1767143440468,-204.02937388,0.00024103,2]
[400133024,1767143440478,-204.35497958,0.00024103,2]
[400133025,1767143440487,-728.8899962,0.00024104,2]
[400133026,1767143440497,-204.84491665,0.00024104,2]
[400133027,1767143440506,-3493.97,0.00024109,2]
[400133029,1767143440515,-256.61878698,0.00024162,2]
[400133030,1767143440524,-546.91207512,0.00024162,2]
[400133031,1767143440534,-182.30402502,0.00024162,2]
[400133032,1767143440543,-151.0,0.00024174,2]
[400133033,1767143440551,-546.91207512,0.00024307,9]
[400133034,1767143440561,-256.61878698,0.00024307,4]
[400133035,1767143440570,-1311.0,0.0002438,2]
[400133036,1767143440579,-3493.97,0.00024383,2]
[400133037,1767143440588,-546.91207512,0.00024453,17]
[400133038,1767143440597,-256.61878698,0.00024453,6]
[400133039,1767143440607,-1000.0,0.00024576,2]
[400133040,1767143440616,-1000.0,0.00024576,2]
[400133041,1767143440625,-1000.0,0.00024576,2]
[400133042,1767143440635,-1000.0,0.00024576,2]
[400133043,1767143440644,-1000.0,0.00024576,2]
[400133044,1767143440652,-1000.0,0.00024576,2]
[400133045,1767143440662,-496.47127164,0.00024576,2]
[400133046,1767143440672,-500.0,0.00024576,2]
[400133047,1767143440681,-500.0,0.00024576,2]
[400133048,1767143440691,-1000.0,0.00024576,2]
[400133049,1767143440699,-500.0,0.00024576,2]
[400133050,1767143440708,-1000.0,0.00024576,2]
[400133051,1767143440718,-500.0,0.00024576,2]
[400133052,1767143440727,-1000.0,0.00024576,2]
[400133053,1767143440736,-1000.0,0.00024576,2]
[400133054,1767143440745,-500.0,0.00024576,2]
[400133055,1767143440754,-634.77180688,0.00024576,2]
[400133056,1767143440765,-500.0,0.00024576,2]
[400133057,1767143440775,-500.0,0.00024576,2]
[400133058,1767143440783,-500.0,0.00024576,2]
[400133060,1767143440793,-2398.4119403,0.00024576,2]
[400133062,1767143440804,-500.0,0.00024576,2]
[400133063,1767143440813,-500.0,0.00024576,2]
[400133064,1767143440822,-151.0,0.00024576,2]
[400133065,1767143440832,-500.0,0.00024576,2]
[400133066,1767143440841,-500.0,0.00024576,2]
[400133067,1767143440850,-500.0,0.00024576,2]
[400133068,1767143440859,-151.0,0.00024576,2]
[400133069,1767143440868,-500.0,0.00024576,2]
[400133070,1767143440877,-151.0,0.00024576,2]
[400133071,1767143440886,-250.0,0.00024576,2]
[400133072,1767143440896,-500.0,0.00024576,2]
[400133073,1767143440904,-151.0,0.00024576,2]
[400133074,1767143440914,-151.0,0.00024576,2]
[400133075,1767143440923,-250.0,0.00024576,2]
[400133076,1767143440932,-151.0,0.00024576,2]
[400133077,1767143440941,-151.0,0.00024576,2]
[400133078,1767143440950,-151.0,0.00024576,2]
[400133079,1767143440959,-151.0,0.00024576,2]
[400133080,1767143440968,-151.0,0.00024576,2]
[400133081,1767143440977,-151.0,0.00024576,2]
[400133082,1767143440986,-151.0,0.00024576,2]
[400133083,1767143440995,-151.0,0.00024576,2]
[400133084,1767143441004,-151.0,0.00024576,2]
[400133085,1767143441014,-181.08010149,0.00024576,2]
[400133086,1767143441023,-3933.98578908,0.00024588,2]
[400133087,1767143441033,-546.91207512,0.00024598,25]
[400133089,1767143441042,-256.61878698,0.00024598,8]
[400133090,1767143441051,-3493.97,0.00024657,2]
[400133091,1767143441061,-238.85723584,0.0002474,2]
[400133092,1767143441070,-546.91207512,0.00024743,32]
[400133093,1767143441079,-256.61878698,0.00024743,10]
[400133094,1767143441089,-742.09971202,0.00024743,10]
[400133095,1767143441098,-4395.93795365,0.000248,2]
[400133096,1767143441107,-408.27959526,0.00024857,2]
[400133097,1767143441117,-546.91207512,0.00024889,40]
[400133098,1767143441126,-256.61878698,0.00024889,12]
[400133099,1767143441135,-3493.97,0.00024931,2]
[400133100,1767143441145,-4378.7352401,0.00025004,6]
[400133101,1767143441154,-546.91207512,0.00025034,48]
[400133102,1767143441163,-256.61878698,0.00025034,14]
[400133103,1767143441172,-160.47,0.000251,7]
[400133104,1767143441181,-514.84070869,0.00025124,2]
[400133105,1767143441190,-2487.15318209,0.00025124,2]
[400133106,1767143441199,-151.0,0.00025124,2]
[400133107,1767143441209,-187.78006525,0.00025124,2]
[400133108,1767143441218,-546.91207512,0.00025179,56]
[400133109,1767143441227,-256.61878698,0.00025179,16]
[400133110,1767143441236,-182.30402502,0.00025179,56]
[400133111,1767143441245,-3493.97,0.00025205,2]
[400133112,1767143441255,-1065.02,0.000253,14]
[400133113,1767143441264,-10447.6,0.000253,2]
[400133114,1767143441273,-546.91207512,0.00025325,63]
[400133115,1767143441282,-256.61878698,0.00025325,18]
[400133116,1767143441292,-546.91207512,0.0002547,71]
[400133117,1767143441301,-256.61878698,0.0002547,20]
[400133118,1767143441310,-150.0,0.000255,2]
[400133119,1767143441319,-1000.0,0.00025559,10]
[400133120,1767143441328,-1000.0,0.00025559,10]
[400133121,1767143441337,-151.0,0.00025599,2]
[400133122,1767143441347,-546.91207512,0.00025615,79]
[400133123,1767143441356,-256.61878698,0.00025615,22]
[400133124,1767143441365,-533.88981491,0.00025672,2]
[400133125,1767143441374,-2579.17784983,0.00025672,2]
[400133126,1767143441383,-151.0,0.00025672,2]
[400133127,1767143441392,-225.17491558,0.00025672,2]
[400133128,1767143441401,-2000.0,0.00025695,7]
[400133129,1767143441411,-166.09,0.000257,7]
[400133130,1767143441420,-2454.92126975,0.00025711,2]
[400133131,1767143441430,-1808.2093343,0.00025739,2]
[400133132,1767143441439,-546.91207512,0.00025761,86]
[400133133,1767143441448,-256.61878698,0.00025761,24]
[400133134,1767143441456,-2454.92126975,0.00025894,2]
[400133135,1767143441465,-546.91207512,0.00025906,94]
[400133136,1767143441474,-256.61878698,0.00025906,26]
[400133137,1767143441483,-546.91207512,0.00026051,102]
[400133138,1767143441492,-256.61878698,0.00026051,28]
[400133139,1767143441501,-500.0,0.00026061,7]
[400133140,1767143441510,-500.0,0.00026135,7]
[400133141,1767143441519,-500.0,0.00026159,7]
[400133142,1767143441528,-256.61878698,0.00026197,30]
[400133143,1767143441537,-182.30402502,0.00026197,110]
[400133144,1767143441546,-4395.93795365,0.000262,2]
[400133145,1767143441555,-553.64373807,0.0002622,2]
[400133146,1767143441564,-2674.60743027,0.0002622,2]
[400133147,1767143441573,-151.0,0.0002622,2]
[400133148,1767143441582,-500.0,0.00026286,7]
[400133149,1767143441591,-198.95323521,0.00026291,6]
[400133150,1767143441600,-176.71421715,0.00026436,17]
[400133151,1767143441609,-1034.7919615,0.00026559,2]
[400133152,1767143441618,-13504.9849915,0.00026559,2]
[400133153,1767143441630,-2156.0,0.00026609,2]
[400133154,1767143441639,-627.0,0.00026609,2]
[400133155,1767143441648,-1364.0,0.00026609,2]
[400133156,1767143441657,-416.0,0.0002661,2]
[400133157,1767143441667,-416.0,0.0002661,2]
[400133158,1767143441676,-693.367322,0.00026676,2]
[400133159,1767143441685,-164.88,0.000267,7]
[400133160,1767143441695,-10447.6,0.000267,2]
[400133161,1767143441704,-574.12855637,0.00026768,2]
[400133162,1767143441713,-151.0,0.00026768,2]
[400133163,1767143441836,-9531.03116729,0.00026805,2]
[400133164,1767143441845,-397.0,0.00026848,2]
[400133165,1767143441854,-443.61148331,0.00026857,2]
[400133166,1767143441863,-397.0,0.00026892,2]
[400133167,1767143441872,-155.5,0.000269,7]
[400133168,1767143441881,-1065.02,0.000269,14]
[400133169,1767143441890,-500.0,0.00026922,7]
[400133170,1767143441899,-154.0,0.00027,10]
[400133171,1767143441908,-183.0,0.00027,7]
[400133172,1767143441917,-400.0,0.00027,2]
[400133173,1767143441926,-1267.74428336,0.00027,2]
[400133174,1767143441935,-166.0,0.00027,7]
[400133175,1767143441944,-167.0,0.00027,7]
[400133176,1767143441954,-151.0,0.00027024,2]
[400133177,1767143441963,-185.35259798,0.00027096,7]
[400133178,1767143441972,-5000.0,0.00027099,14]
[400133179,1767143441981,-185.35259799,0.00027129,7]
[400133180,1767143441990,-500.0,0.00027157,7]
[400133181,1767143441999,-5000.0,0.00027165,15]
[400133182,1767143442008,-168.0,0.00027179,2]
[400133183,1767143442017,-500.0,0.000272,7]
[400133184,1767143442026,-728.8899962,0.00027209,2]
[400133185,1767143442035,-595.37131296,0.00027316,2]
[400133186,1767143442044,-397.0,0.00027326,2]
[400133187,1767143442053,-5000.0,0.00027328,15]
[400133188,1767143442063,-500.0,0.00027337,7]
[400133189,1767143442072,-5888.0,0.00027395,2]
[400133190,1767143442081,-397.0,0.00027502,7]
[400133191,1767143442090,-500.0,0.00027514,7]
[400133192,1767143442100,-397.0,0.00027536,7]
[400133193,1767143442109,-4395.93795365,0.000276,2]
[400133194,1767143442119,-5000.0,0.00027678,3]
[400133195,1767143442128,-5000.0,0.00027699,7]
[400133196,1767143442138,-5000.0,0.00027699,10]
[400133197,1767143442147,-150.0,0.000277,10]
[400133198,1767143442156,-13905.38930368,0.0002772,2]
[400133199,1767143442386,-3493.97,0.00025479,2]
[400133200,1767143442395,-3493.97,0.00025753,2]
[400133201,1767143442405,-3493.97,0.00026027,2]
[400133202,1767143442414,-2454.92126975,0.00026194,2]
[400133203,1767143442423,-317.76873025,0.00026301,2]
[400133204,1767143442640,-3e-08,0.00026301,2]
[400133205,1767143442651,-999.3076169,0.00026301,2]
[400133225,1767143446666,-128.26199991,0.00012758,2]
[400133226,1767143446734,-689.96237228,0.00012758,2]
[400133227,1767143446743,-818.22437219,0.00012758,2]
[400133228,1767143446753,-818.22437219,0.00012758,2]
[400133229,1767143446768,-224.60286676,0.00012758,2]
[400133236,1767143454175,184.38,0.00012329,2]
[400133237,1767143455743,4553.42,0.00012668,2]
[400133238,1767143455768,446.58,0.00012668,2]
[400133239,1767143464569,153.65,0.00012329,2]
[400133240,1767143475290,768.25,0.00012329,2]
[400133241,1767143479144,5000.0,0.00012668,2]
[400133242,1767143502563,3631.53,0.00012668,2]
[400133243,1767143502588,1368.47,0.00012668,2]
[400133244,1767143504253,227.516,0.00012503,2]
[400133245,1767143525843,5000.0,0.00012668,2]
[400133246,1767143548662,1331.15968753,0.00012668,2]
[400133247,1767143764743,-300.0,0.00012756,2]
[400133248,1767143764771,-1200.0,0.00012757,2]
[400133249,1767143764800,-1200.0,0.00012757,2]
[400133250,1767143764829,-193.09804967,0.00012757,2]
[400133251,1767143764858,-500.0,0.00012757,2]
[400133252,1767143764889,-500.0,0.00012757,2]
[400133253,1767143764918,-395.46860386,0.00012757,2]
[400133254,1767143764953,-500.0,0.00012757,2]
[400133255,1767143764983,-88.21156053,0.00012757,2]
[400133256,1767143765241,1096.31987236,0.00012658,2]
[400133257,1767143770664,-246.45357188,0.00012757,2]
[400133258,1767143770701,-500.0,0.00012757,2]
[400133259,1767143770739,-500.0,0.00012757,2]
[400133260,1767143770774,-500.0,0.00012757,2]
[400133261,1767143770814,-500.0,0.00012757,2]
[400133262,1767143770851,-500.0,0.00012757,2]
[400133263,1767143770892,-291.08201035,0.00012757,2]
[400133264,1767143770926,-500.0,0.00012757,2]
[400133265,1767143770959,-567.88413847,0.00012757,2]
[400133266,1767143770993,-251.77834541,0.00012758,2]
[400133267,1767143772534,1285.61386778,0.0001263,2]
[400133268,1767143774185,-3714.38613222,0.0001263,2]
[400133269,1767143796491,2571.23773556,0.0001263,2]
[400133270,1767143796518,2428.76226444,0.0001263,2]
[400133271,1767143819919,1087.62175655,0.00012668,2]
[400133272,1767143843024,502.56647399,0.00012668,2]
[400133273,1767143924929,838.62,0.00012329,2]
[400133274,1767143988293,-1200.0,0.00012757,2]
[400133275,1767143988324,-300.0,0.00012757,2]
[400133276,1767143988356,-250.71153739,0.00012758,2]
[400133277,1767144002055,300.0,0.00012757,2]
[400133278,1767144002477,1200.0,0.00012757,2]
[400133279,1767144004493,601.0,0.00012758,2]
[400133280,1767144011225,543.0,0.00028767,120]
[400133281,1767144031918,151.0,0.000126,2]
[400133282,1767144032229,151.0,0.000124,2]
[400133283,1767144032525,151.0,0.000122,2]
[400133284,1767144032950,151.0,0.000121,2]
[400133285,1767144033297,151.0,0.000119,2]
[400133286,1767144062539,300.0,0.00012757,2]
[400133287,1767144104240,246.258,0.00012503,2]
[400133288,1767144105381,877.05589788,0.00012658,2]
[400133291,1767144122222,300.0,0.00012757,2]
[400133292,1767144182280,300.0,0.00012757,2]
[400133293,1767144192706,1200.0,0.00012757,2]
[400133298,1767144242984,300.0,0.00012757,2]
[400133302,1767144302052,119.27302734,0.00012757,2]
[400133303,1767144333684,999.0,0.00011817,2]
[400133306,1767144445669,701.64471828,0.00012658,2]
[400133310,1767144481168,8299.36528172,0.00012658,2]
[400133311,1767144481197,10000.01,0.00012658,2]
[400133312,1767144481225,10000.01,0.00012658,2]
[400133313,1767144481251,10000.01,0.00012658,2]
[400133314,1767144481277,10000.01,0.00012658,2]
[400133315,1767144481302,10000.01,0.00012658,2]
[400133316,1767144481330,10000.01,0.00012658,2]
[400133317,1767144481357,10000.01,0.00012658,2]
[400133318,1767144481382,10000.01,0.00012658,2]
[400133319,1767144481408,10000.01,0.00012658,2]
[400133320,1767144493461,1200.0,0.00012657,2]
[400133322,1767144511315,913.13466359,0.00012657,2]
[400133323,1767144511345,553.75740725,0.00012657,2]
[400133324,1767144511405,913.13466359,0.00012657,2]
[400133325,1767144511520,913.13466359,0.00012657,2]
[400133326,1767144511611,913.13466359,0.00012657,2]
[400133327,1767144511692,913.13466359,0.00012657,2]
[400133328,1767144511775,913.13466359,0.00012657,2]
[400133329,1767144511876,913.13466359,0.00012657,2]
[400133330,1767144511961,913.13466359,0.00012657,2]
[400133331,1767144512006,913.13466359,0.00012657,2]
[400133332,1767144512040,28.04062044,0.00012657,2]
[400133333,1767144512064,885.09404315,0.00012657,2]
[400133334,1767144512097,913.13466359,0.00012657,2]
[400133335,1767144512143,913.13466359,0.00012657,2]
[400133336,1767144512181,913.13466359,0.00012657,2]
[400133337,1767144512221,913.13466359,0.00012657,2]
[400133338,1767144512266,913.13466359,0.00012657,2]
[400133340,1767144512305,913.13466359,0.00012657,2]
[400133341,1767144512340,913.13466359,0.00012657,2]
[400133342,1767144512370,913.13466359,0.00012657,2]
[400133343,1767144512405,913.13466359,0.00012657,2]
[400133344,1767144512446,896.70398454,0.00012657,2]
[400133345,1767144512471,16.43067905,0.00012657,2]
[400133346,1767144513424,913.13466359,0.00012657,2]